lending/lending_fUSD_20240509
["ID","MTS","AMOUNT","RATE_DAILY","PERIOD"]
[326692725,1715254248710,-983.89211,0.00017011,2]
[326692726,1715254248720,-983.89211,0.00017011,2]
[326692727,1715254248729,-983.89211,0.00017011,2]
[326692728,1715254248739,-983.89211,0.00017011,2]
[326692729,1715254248749,-4750.145775,0.00017011,2]
[326692730,1715254248758,-4750.145775,0.00017011,2]
[326692731,1715254248768,-4750.145775,0.00017011,2]
[326692732,1715254248778,-4750.145775,0.00017011,2]
[326692733,1715254248788,-151.0,0.00017011,2]
[326692734,1715254248799,-213.289914,0.00017011,2]
[326692735,1715254248808,-213.289914,0.00017011,2]
[326692736,1715254248818,-20000.0,0.00017023,2]
[326692737,1715254248827,-151.0,0.00017023,2]
[326692738,1715254248837,-227.712257,0.00017023,2]
[326692739,1715254248846,-983.89211,0.00017023,2]
[326692740,1715254248856,-983.89211,0.00017023,2]
[326692741,1715254248866,-4750.145775,0.00017023,2]
[326692742,1715254248875,-4750.145775,0.00017023,2]
[326692743,1715254248885,-213.289914,0.00017023,2]
[326692744,1715254248895,-213.289914,0.00017023,2]
[326692745,1715254248905,-358.94765192,0.0001711,2]
[326692746,1715254248915,-150.0,0.0001726,2]
[326692747,1715254248925,-1000.0,0.00017276,2]
[326692748,1715254248935,-1000.0,0.00017276,2]
[326692749,1715254248944,-1000.0,0.00017276,2]
[326692750,1715254248954,-1000.0,0.00017276,2]
[326692751,1715254248963,-1000.0,0.00017276,2]
[326692752,1715254248973,-1000.0,0.00017276,2]
[326692753,1715254248982,-1000.0,0.00017276,2]
[326692754,1715254248992,-1000.0,0.00017276,2]
[326692755,1715254249001,-1000.0,0.00017276,2]
[326692756,1715254249011,-1000.0,0.00017276,2]
[326692757,1715254249022,-1000.0,0.00017276,2]
[326692758,1715254249031,-1000.0,0.00017276,2]
[326692759,1715254249041,-1000.0,0.00017276,2]
[326692760,1715254249050,-1000.0,0.00017276,2]
[326692761,1715254249059,-1000.0,0.00017276,2]
[326692762,1715254249068,-1000.0,0.00017276,2]
[326692763,1715254249078,-573.0,0.00017276,2]
[326692764,1715254249088,-983.89211,0.00017276,2]
[326692765,1715254249098,-983.89211,0.00017276,2]
[326692766,1715254249108,-4750.145775,0.00017276,2]
[326692767,1715254249118,-4750.145775,0.00017276,2]
[326692768,1715254249127,-213.289914,0.00017276,2]
[326692769,1715254249137,-213.289918,0.00017276,2]
[326692770,1715254249147,-983.89211,0.00017279,2]
[326692771,1715254249160,-983.89212,0.00017279,2]
[326692772,1715254249169,-4750.145775,0.00017279,2]
[326692773,1715254249179,-4750.145774,0.00017279,2]
[326692774,1715254249191,-2668.23770068,0.00017282,2]
[326692775,1715254249202,-11882.35637,0.00017303,2]
[326692776,1715254249211,-438.0,0.00017315,2]
[326692777,1715254249221,-164.0,0.00017315,2]
[326692778,1715254249232,-611.0,0.00017315,2]
[326692779,1715254249241,-809.0,0.00017315,2]
[326692780,1715254249251,-421.0,0.00017315,2]
[326692781,1715254249262,-151.893,0.00017315,2]
[326692782,1715254249271,-1990.642,0.00017315,2]
[326692783,1715254249281,-1501.377,0.00017315,2]
[326692784,1715254249291,-1139.0,0.00017315,2]
[326692785,1715254249301,-444.0,0.00017315,2]
[326692786,1715254249310,-1645.0,0.00017315,2]
[326692787,1715254249320,-215.0,0.00017315,2]
[326692788,1715254249330,-2872.557,0.00017315,2]
[326692789,1715254249340,-5895.194,0.00017315,2]
[326692790,1715254249349,-37807.0,0.00017315,2]
[326692791,1715254249359,-5907.0,0.00017315,2]
[326692792,1715254249368,-972.0,0.00017315,2]
[326692793,1715254249378,-1563.438,0.00017315,2]
[326692794,1715254249388,-1272.68,0.00017315,2]
[326692795,1715254249398,-1935.0,0.00017315,2]
[326692796,1715254249407,-543.0,0.00017315,2]
[326692797,1715254249418,-150.0,0.00017325,2]
[326692798,1715254249427,-155.161,0.00017325,2]
[326692799,1715254249437,-160.327,0.00017325,2]
[326692800,1715254249447,-153.042,0.00017325,2]
[326692801,1715254249458,-275.0,0.00017325,2]
[326692802,1715254249467,-163.962,0.00017325,2]
[326692803,1715254249477,-153.491,0.00017325,2]
[326692804,1715254249487,-206.639,0.00017325,2]
[326692805,1715254249497,-291.942,0.00017325,2]
[326692806,1715254249508,-150.0,0.00017325,2]
[326692807,1715254249518,-342.42,0.0001733,2]
[326692808,1715254249527,-1000.0,0.000175,2]
[326692809,1715254249537,-172.94067095,0.00017527,2]
[326692810,1715254249546,-159.81686168,0.00017527,2]
[326692811,1715254249556,-10000.0,0.00017627,2]
[326692812,1715254249566,-2332.01378047,0.00017667,2]
[326692813,1715254249575,-1008.0,0.000177,2]
[326692814,1715254249585,-1388.19793275,0.00017744,2]
[326692815,1715254249594,-174.53743643,0.00017767,2]
[326692816,1715254249603,-177.68151497,0.00017767,2]
[326692817,1715254249613,-1694.69645,0.000179,2]
[326692818,1715254249623,-1050.0,0.00018,3]
[326692819,1715254249633,-244.61095349,0.00018174,2]
[326692820,1715254249643,-20000.0,0.00018337,2]
[326692821,1715254249652,-200.0,0.00018437,2]
[326692822,1715254249662,-1000.0,0.00018437,2]
[326692823,1715254249671,-500.0,0.00018437,2]
[326692824,1715254249681,-200.0,0.00018438,2]
[326692825,1715254249692,-1000.0,0.00018438,2]
[326692826,1715254249702,-1000.0,0.00018438,2]
[326692827,1715254249711,-200.0,0.00018438,2]
[326692828,1715254249721,-500.0,0.00018438,2]
[326692829,1715254249731,-500.0,0.00018438,2]
[326692830,1715254249741,-200.0,0.00018438,2]
[326692831,1715254249938,-484.0,0.000185,2]
[326692832,1715254249948,-2357.71801036,0.00018585,2]
[326692833,1715254249958,-157.92,0.000187,2]
[326692834,1715254249967,-2332.01378045,0.00018779,2]
[326692835,1715254249977,-5000.0,0.00019,2]
[326692836,1715254249987,-436.79869489,0.00019,5]
[326692837,1715254249998,-553.37094485,0.00019178,2]
[326692838,1715254250008,-201.5,0.00019178,2]
[326692839,1715254250018,-216.6,0.00019178,2]
[326692840,1715254250028,-162.69,0.00019178,2]
[326692841,1715254250038,-190.34,0.00019178,2]
[326692842,1715254250048,-155.46,0.000192,2]
[326692843,1715254250062,-233.62,0.000192,2]
[326692844,1715254250073,-342.42,0.00019256,2]
[326692845,1715254250083,-12326.29,0.00019339,2]
[326692846,1715254250092,-255.19552047,0.00019766,2]
[326692847,1715254250102,-93613.7893237,0.00019766,2]
[326692848,1715254250111,-11608.4559915,0.00019766,2]
[326692849,1715254250121,-1505.4798326,0.00019766,2]
[326692850,1715254250130,-173216.25758669,0.0001978,2]
[326692851,1715254250140,-3332.8869704,0.00019786,2]
[326692852,1715254250150,-10794.5453365,0.00019786,2]
[326692853,1715254250165,-1201.3224682,0.00019786,2]
[326692854,1715254250174,-834241.21317905,0.000198,7]
[326692855,1715254250410,-32294.08291431,0.000198,7]
[326692856,1715254250423,-19230.0,0.000198,7]
[326692857,1715254250434,-1563.11204785,0.000198,7]
[326692858,1715254250446,-3291.5466412,0.000198,7]
[326692859,1715254250458,-2304.13470654,0.000198,7]
[326692860,1715254619266,351.23835064,0.00012,30]
[326692870,1715254931921,-707.84680816,9.894e-05,2]
[326692871,1715254931946,-540.24391711,9.895e-05,2]
[326692872,1715254931970,-1135.3087,9.898e-05,2]
[326692873,1715254931994,-150.0,9.998e-05,2]
[326692874,1715254932019,-22807.72639511,9.999e-05,2]
[326692875,1715254932042,-20927.31864226,0.0001,2]
[326692879,1715255126628,-150.0,0.00011688,2]
[326692880,1715255126686,-150.0,0.00012337,2]
[326692881,1715255126761,-1059.6838459,0.0001279,2]
[326692882,1715255126839,-1424.3161541,0.00012797,2]
[326692883,1715255130953,-4000.0,0.00012797,2]
[326692884,1715255131420,-4000.0,0.00012797,2]
[326692885,1715255132001,-4000.0,0.00012797,2]
[326692900,1715255432454,-162.99254844,0.00012599,2]
[326692902,1715255432464,-719.34206678,0.00012698,2]
[326692903,1715255432476,-219.07321825,0.00012698,2]
[326692905,1715255432485,-197.99649217,0.00012699,2]
[326692916,1715255432586,-1e-06,0.00012699,2]
[326692918,1715255432597,-16982.66283877,0.00012699,2]
[326692920,1715255432611,-399.20391486,0.00012699,2]
[326692949,1715255441477,-1485.99032302,0.00012699,2]
[326692950,1715255441518,-903.86690902,0.00012699,2]
[326692951,1715255441537,-2838.00591627,0.00012699,2]
[326692952,1715255441550,-11177.7439,0.000127,2]
[326692953,1715255441560,-3099.6514192,0.00012795,2]
[326692954,1715255441570,-1695.98568266,0.00012795,2]
[326692955,1715255441583,-503.85224682,0.00012795,2]
[326692956,1715255441594,-58413.2184804,0.00012797,2]
[326692957,1715255441604,-547.73087551,0.00012797,2]
[326692958,1715255441615,-151.4285392,0.00012797,2]
[326692959,1715255441625,-409.78233695,0.00012798,2]
[326692960,1715255441636,-166.60491849,0.00012798,2]
[326692961,1715255441646,-215.52248085,0.00012798,2]
[326692962,1715255441655,-84890.1271,0.000128,2]
[326692963,1715255441666,-150.0,0.00012877,2]
[326692964,1715255441676,-155.88224783,0.000129,2]
[326692965,1715255441687,-299.79255592,0.000129,2]
[326692966,1715255441697,-172.94067095,0.000129,2]
[326692967,1715255441706,-4417.52417451,0.000129,2]
[326692968,1715255441715,-170.05355985,0.000129,2]
[326692969,1715255441725,-1370.35420996,0.000129,2]
[326692970,1715255441734,-8078.89634326,0.000129,2]
[326692971,1715255441743,-499.99,0.000129,2]
[326692972,1715255441752,-179.03484571,0.000129,2]
[326692973,1715255441761,-1738.29597597,0.00012969,2]
[326692974,1715255441771,-151.44512494,0.00012986,2]
[326692975,1715255441780,-190.88176307,0.0001299,2]
[326692976,1715255441789,-161.45,0.0001299,2]
[326692977,1715255441801,-161.45,0.0001299,2]
[326692978,1715255441811,-161.45,0.0001299,2]
[326692979,1715255441821,-161.45,0.0001299,2]
[326692980,1715255441830,-161.45,0.0001299,2]
[326692981,1715255441840,-161.45,0.0001299,2]
[326692982,1715255441849,-161.45,0.0001299,2]
[326692983,1715255441860,-161.45,0.0001299,2]
[326692984,1715255441870,-706.56200578,0.00012999,2]
[326692985,1715255441879,-2716929.51192509,0.00013,2]
[326692986,1715255441892,-756849.57987112,0.00013,2]
[326692987,1715255441904,-897.3225603,0.00013,2]
[326692988,1715255441916,-996.50499996,0.00013,2]
[326692989,1715255441928,-12256.01042064,0.00013,2]
[326692992,1715255444616,-259569.4099131,0.00013,2]
[326692994,1715255444628,-1098.69047726,0.00014074,2]
[326692998,1715255444638,-877.30141896,0.00014174,2]
[326693002,1715255444647,-2991.41422735,0.00014274,2]
[326693006,1715255444657,-285.61,0.00014374,2]
[326693010,1715255444667,-4417.52417444,0.00014445,2]
[326693015,1715255444677,-250.0,0.00015095,2]
[326693017,1715255444686,-250.0,0.00015313,2]
[326693021,1715255444696,-1370.35420996,0.00015329,2]
[326693024,1715255444706,-177.68151497,0.0001553,2]
[326693027,1715255444716,-174.53743641,0.0001563,2]
[326693029,1715255444726,-171.21,0.00015902,2]
[326693031,1715255444735,-164.24,0.00015977,2]
[326693035,1715255444745,-4417.52417444,0.00015991,2]
[326693038,1715255444755,-150.0,0.00016089,2]
[326693041,1715255444764,-6665.0,0.000163,2]
[326693043,1715255444774,-10000.0,0.00016429,2]
[326693046,1715255444783,-807.0,0.00016556,2]
[326693048,1715255444793,-317.84580233,0.00016591,2]
[326693051,1715255444805,-189.08149527,0.00016591,2]
[326693054,1715255444815,-196.01928941,0.00016592,2]
[326693057,1715255444825,-155.55226398,0.00016592,2]
[326693059,1715255444834,-156.10117173,0.00016592,2]
[326693060,1715255444844,-288.94378566,0.00016592,2]
[326693063,1715255444854,-676.07047739,0.00016592,2]
[326693065,1715255444863,-300.59367627,0.00016592,2]
[326693067,1715255444872,-155.52702324,0.00016592,2]
[326693069,1715255444882,-226.76655076,0.00016592,2]
[326693070,1715255444892,-467.97960177,0.00016592,2]
[326693073,1715255444902,-155.51216996,0.00016592,2]
[326693075,1715255444911,-413.30371254,0.00016592,2]
[326693077,1715255444922,-439.00970497,0.00016592,2]
[326693079,1715255444932,-648.19013736,0.00016592,2]
[326693081,1715255444943,-195.47609096,0.00016592,2]
[326693083,1715255444953,-5562.73011428,0.00016592,2]
[326693085,1715255444963,-265.36625582,0.00016592,2]
[326693087,1715255444972,-2755.08166435,0.00016592,2]
[326693089,1715255444982,-156.63582093,0.00016592,2]
[326693091,1715255444992,-318.59270315,0.00016592,2]
[326693093,1715255445001,-194.36466099,0.00016592,2]
[326693095,1715255445011,-2359.13260233,0.00016592,2]
[326693097,1715255445023,-306.92143567,0.00016592,2]
[326693099,1715255445033,-155.69298702,0.00016593,2]
[326693101,1715255445043,-660.07063343,0.00016593,2]
[326693103,1715255445054,-126625.27766437,0.00016593,2]
[326693105,1715255445064,-17703.0,0.000166,3]
[326693107,1715255445073,-17703.0,0.000169,5]
[326693109,1715255445083,-4417.52417444,0.00017536,2]
[326693111,1715255445092,-1370.35420996,0.00017757,2]
[326693113,1715255445102,-609.07419053,0.0001788,2]
[326693115,1715255445112,-609.07419051,0.0001788,2]
[326693117,1715255445121,-609.07419051,0.0001788,2]
[326693119,1715255445131,-23800.13161257,0.0001788,2]
[326693121,1715255445140,-23800.13161257,0.0001788,2]
[326693123,1715255445149,-23800.13161257,0.0001788,2]
[326693125,1715255445159,-670.5,0.00018004,2]
[326693127,1715255445168,-292.118,0.00018004,2]
[326693129,1715255445178,-1260.0,0.00018004,2]
[326693131,1715255445188,-1788.0,0.00018004,2]
[326693133,1715255445198,-1246.57,0.00018004,2]
[326693135,1715255445207,-150.0,0.00018004,2]
[326693137,1715255445217,-1139.0,0.00018004,2]
[326693139,1715255445226,-215.0,0.00018004,2]
[326693141,1715255445236,-662.199,0.00018004,2]
[326693143,1715255445245,-5907.0,0.00018004,2]
[326693145,1715255445254,-5746.0,0.00018004,2]
[326693147,1715255445263,-37807.0,0.00018004,2]
[326693149,1715255445273,-150.0,0.00018004,2]
[326693151,1715255445283,-609.07419051,0.00018485,2]
[326693153,1715255445292,-23800.13161257,0.00018485,2]
[326693155,1715255445305,-171.21,0.00018552,2]
[326693157,1715255445316,-205.88441293,0.00018685,2]
[326693159,1715255445325,-616.51901983,0.00018685,2]
[326693161,1715255445335,-1997.82151721,0.00018685,2]
[326693163,1715255445345,-5000.0,0.00019,2]
[326693165,1715255445355,-4417.52417444,0.00019082,2]
[326693167,1715255445365,-500.0,0.00019178,2]
[326693169,1715255445375,-364.63264603,0.00019178,2]
[326693171,1715255445385,-278.28676201,0.00019178,2]
[326693173,1715255445395,-409.2798454,0.00019178,2]
[326693175,1715255445405,-500.0,0.00019178,2]
[326693177,1715255445414,-191.42,0.00019178,2]
[326693179,1715255445423,-216.6,0.00019178,2]
[326693181,1715255445432,-155.46,0.000192,2]
[326693183,1715255445443,-208.69,0.000192,2]
[326693185,1715255445452,-1104.38831441,0.00019404,2]
[326693187,1715255445462,-1017.90906436,0.00019404,2]
[326693189,1715255445471,-1068.19085186,0.00019404,2]
[326693191,1715255445481,-287.15812153,0.00019588,2]
[326693193,1715255445491,-200.0,0.00019627,2]
[326693195,1715255445500,-1000.0,0.00019627,2]
[326693197,1715255445510,-500.0,0.00019627,2]
[326693199,1715255445520,-200.0,0.00019628,2]
[326693201,1715255445530,-1000.0,0.00019628,2]
[326693203,1715255445541,-500.0,0.00019628,2]
[326693205,1715255445555,-200.0,0.00019628,2]
[326693207,1715255445564,-1386.76301344,0.00019785,2]
[326693209,1715255445574,-1077.3808947,0.00019797,2]
[326693210,1715255445584,-324.6302026,0.00019797,2]
[326693213,1715255445595,-3136.9224503,0.00019797,2]
[326693215,1715255445604,-112923.36261436,0.000198,7]
[326693217,1715255445615,-155.63243735,0.000198,2]
[326693218,1715255445626,-484.0,0.000198,2]
[326693220,1715255445636,-18501.0599317,0.00019838,2]
[326693222,1715255445646,-13519.6814412,0.00019838,2]
[326693224,1715255445655,-50842.1742921,0.00019852,2]
[326693227,1715255445665,-1077.3808947,0.00019866,2]
[326693229,1715255445674,-1077.3808947,0.00019866,2]
[326693231,1715255445684,-1077.3808947,0.00019866,2]
[326693233,1715255445694,-1077.3808947,0.00019866,2]
[326693235,1715255445703,-1077.3808947,0.00019866,2]
[326693237,1715255445713,-324.6302026,0.00019866,2]
[326693238,1715255445722,-324.6302026,0.00019866,2]
[326693260,1715255445925,-324.6302026,0.00019866,2]
[326693262,1715255445935,-324.6302026,0.00019866,2]
[326693264,1715255445945,-324.6302026,0.00019866,2]
[326693266,1715255445955,-3136.9224503,0.00019866,2]
[326693268,1715255445965,-3136.9224503,0.00019866,2]
[326693270,1715255445974,-3136.9224503,0.00019866,2]
[326693272,1715255445984,-3136.9224503,0.00019866,2]
[326693274,1715255445993,-3136.9224503,0.00019866,2]
[326693276,1715255446003,-40786.8362825,0.00019866,2]
[326693278,1715255446013,-30731.4982728,0.00019866,2]
[326693280,1715255446024,-20676.1602632,0.00019866,2]
[326693282,1715255446034,-10620.8222535,0.00019866,2]
[326693284,1715255446046,-565.4842438,0.00019866,2]
[326693286,1715255446056,-14842.0029826,0.00019866,2]
[326693288,1715255446065,-11182.9460335,0.00019866,2]
[326693290,1715255446075,-7523.8890844,0.00019866,2]
[326693292,1715255446085,-3864.8321353,0.00019866,2]
[326693294,1715255446094,-205.7751862,0.00019866,2]
[326693296,1715255446104,-10845.8192674,0.00019866,2]
[326693298,1715255446113,-8171.9570936,0.00019866,2]
[326693300,1715255446122,-5498.0949197,0.00019866,2]
[326693302,1715255446132,-2824.2327459,0.00019866,2]
[326693304,1715255446142,-150.3705721,0.00019866,2]
[326693306,1715255446151,-202.81504794,0.0001987,7]
[326693308,1715255446160,-1562464.91301733,0.0001988,2]
[326693334,1715255446388,-519047.0044422,0.0001988,2]
[326693336,1715255446400,-78245.6891595,0.0001988,2]
[326693338,1715255446409,-179.16,0.000199,2]
[326693340,1715255446419,-151.69247098,0.000199,2]
[326693342,1715255446428,-151.69247098,0.000199,2]
[326693344,1715255446438,-151.69247098,0.000199,2]
[326693346,1715255446447,-151.69247098,0.000199,2]
[326693348,1715255446456,-151.69247098,0.000199,2]
[326693350,1715255446466,-155.0,0.0002,2]
[326693352,1715255446475,-861.32670888,0.0002,2]
[326693354,1715255446486,-1260.77461165,0.0002,2]
[326693356,1715255446495,-1770.7603545,0.0002,2]
[326693358,1715255446505,-602.93387375,0.0002,2]
[326693360,1715255446516,-1100.0,0.0002,3]
[326693362,1715255446526,-1370.35420996,0.00020186,2]
[326693364,1715255446541,-20000.0,0.0002031,2]
[326693366,1715255446554,-150.0,0.00020325,2]
[326693368,1715255446565,-609.07419051,0.00020387,2]
[326693371,1715255446577,-23800.13161257,0.00020387,2]
[326693373,1715255446587,-160.81,0.00020612,2]
[326693375,1715255446596,-420.08,0.00020612,2]
[326693377,1715255446606,-300.58,0.00020612,2]
[326693379,1715255446619,-619.25,0.00020612,2]
[326693381,1715255446630,-150.0,0.00020612,2]
[326693382,1715255446639,-150.0,0.00020612,2]
[326693384,1715255446649,-333.11,0.00020612,2]
[326693387,1715255446658,-302.45,0.00020612,2]
[326693389,1715255446668,-150.0,0.00020612,2]
[326693391,1715255446677,-163.21,0.00020612,2]
[326693393,1715255446687,-701.46,0.00020612,2]
[326693394,1715255446696,-150.0,0.00020612,2]
[326693395,1715255446707,-420.08,0.00020612,2]
[326693396,1715255446716,-1046.1,0.00020612,2]
[326693397,1715255446726,-150.0,0.00020612,2]
[326693398,1715255446736,-420.08,0.00020612,2]
[326693399,1715255446746,-150.0,0.00020612,2]
[326693400,1715255446755,-163.21,0.00020612,2]
[326693401,1715255446764,-838.56,0.00020612,2]
[326693402,1715255446774,-150.0,0.00020612,2]
[326693403,1715255446784,-163.21,0.00020612,2]
[326693404,1715255446793,-150.0,0.00020612,2]
[326693406,1715255446803,-150.0,0.00020612,2]
[326693408,1715255446813,-163.21,0.00020612,2]
[326693410,1715255446822,-163.21,0.00020612,2]
[326693412,1715255446832,-4417.52417444,0.00020627,2]
[326693414,1715255446841,-153.9793298,0.00020669,2]
[326693416,1715255446851,-156.75629981,0.00020812,2]
[326693418,1715255446860,-600.0,0.00020833,2]
[326693420,1715255446869,-84.05607744,0.00020841,2]
[326693422,1715255446882,-67.63639354,0.00020841,2]
[326693424,1715255446892,-719.19662653,0.00021,2]
[326693426,1715255446901,-150.0,0.00021,2]
[326693428,1715255446911,-1226.0,0.00021004,2]
[326693430,1715255446920,-214.0,0.00021004,2]
[326693432,1715255446930,-163.014,0.00021004,2]
[326693434,1715255446940,-5746.0,0.00021004,2]
[326693436,1715255446950,-19799.641,0.00021004,2]
[326693438,1715255446960,-150.0,0.00021004,2]
[326693440,1715255446970,-155.67281257,0.00021043,2]
[326693442,1715255446979,-171.21,0.00021203,2]
[326693444,1715255446988,-155.46,0.000213,2]
[326693446,1715255446999,-208.69,0.000213,2]
[326693448,1715255447008,-3253.27874028,0.000214,2]
[326693529,1715255449291,-395.42827732,0.00014074,2]
[326693532,1715255449303,-3031.67690877,0.00016429,2]
[326693534,1715255449312,-1066.237,0.00018004,2]
[326693536,1715255449322,-4825.61760298,0.000214,2]
[326693537,1715255449331,-150.0,0.0002147,2]
[326693538,1715255449340,-150.0,0.000215,3]
[326693539,1715255449349,-155.34538558,0.00021619,2]
[326693540,1715255449359,-5197.98131857,0.0002162,2]
[326693541,1715255449368,-6252.59152665,0.0002162,2]
[326693542,1715255449377,-600.0,0.00021701,2]
[326693543,1715255449387,-400.0,0.000218,7]
[326693544,1715255449395,-153.9793298,0.00021882,2]
[326693545,1715255449405,-800.0,0.000219,7]
[326693546,1715255449414,-1296.78802417,0.000219,2]
[326693547,1715255449423,-250.0,0.00021918,2]
[326693548,1715255449433,-6654.68,0.00021918,3]
[326693549,1715255449442,-1098.69047726,0.00021987,2]
[326693550,1715255449451,-23286.16570986,0.00021998,2]
[326693551,1715255449462,-428.141,0.00021998,2]
[326693552,1715255449473,-4752.33374793,0.00021998,2]
[326693553,1715255449696,-307.44854805,0.00021998,2]
[326693558,1715255999565,303.42617242,0.00022,30]
[326693563,1715256633952,-618.36792039,0.00015995,2]
[326693568,1715256633963,-14.79781614,0.00015996,2]
[326693574,1715256633976,-500.88172146,0.00015996,2]
[326693577,1715256633985,-76.6135938,0.00015998,2]
[326693583,1715256633998,-4147.36848739,0.00015998,2]
[326693585,1715256634013,-441.23700119,0.00015998,2]
[326693587,1715256634024,-685.14132927,0.00015998,2]
[326693589,1715256634035,-4622.51136348,0.00015998,2]
[326693591,1715256634045,-3736.6909,0.00016,2]
[326693593,1715256634054,-14.74828208,0.000161,2]
[326693595,1715256634067,-631.25171792,0.000161,2]
[326693597,1715256634077,-31.18747692,0.000161,2]
[326693599,1715256634089,-977.03499773,0.000161,2]
[326693601,1715256634101,-384.20256361,0.000161,2]
[326693603,1715256634112,-1203.57496174,0.000161,2]
[326693605,1715256634122,-881.01104865,0.00016499,2]
[326693608,1715256634135,-266.21933846,0.00016499,2]
[326693610,1715256634144,-2168.0,0.000166,5]
[326693612,1715256634153,-15.78066154,0.00016712,2]
[326693614,1715256634165,-166.81933846,0.00016712,2]
[326693616,1715256634175,-1763.04817203,0.00018,3]
[326693618,1715256634184,-1050.0,0.00018,3]
[326693620,1715256634194,-1397.0,0.00018225,2]
[326693622,1715256634204,-1415.681,0.00018225,2]
[326693624,1715256634214,-874.05148951,0.00018225,2]
[326693626,1715256634226,-590.10296194,0.00018225,2]
[326693629,1715256634238,-321.84554855,0.00018225,2]
[326693631,1715256634248,-437.0,0.00018225,2]
[326693633,1715256634258,-609.0,0.00018225,2]
[326693635,1715256634268,-421.0,0.00018225,2]
[326693637,1715256634277,-808.0,0.00018225,2]
[326693639,1715256634286,-2449.0,0.00018225,2]
[326693641,1715256634296,-1477.0,0.00018225,2]
[326693643,1715256634307,-444.0,0.00018225,2]
[326693645,1715256634317,-1139.0,0.00018225,2]
[326693647,1715256634327,-215.0,0.00018225,2]
[326693649,1715256634336,-1643.0,0.00018225,2]
[326693651,1715256634345,-3134.0,0.00018225,2]
[326693653,1715256634355,-4889.43531566,0.00018225,2]
[326693655,1715256634368,-1005.56468434,0.00018225,2]
[326693657,1715256634377,-499.99,0.000183,2]
[326693659,1715256634386,-5000.0,0.00019,2]
[326693661,1715256634396,-157.81,0.00019178,2]
[326693662,1715256634406,-3876.54489169,0.000192,2]
[326693663,1715256634416,-2141.64,0.00019754,2]
[326693664,1715256634426,-150.0,0.0001986,2]
[326693665,1715256634435,-200.0,0.0001989,2]
[326693666,1715256634444,-765.49229032,0.00019897,2]
[326693667,1715256634461,-492.84148313,0.00019897,2]
[326693668,1715256634473,-309.4972515,0.00019897,2]
[326693669,1715256634486,-1183.16897505,0.00019897,2]
[326693670,1715256634495,-250.0,0.00019901,2]
[326693671,1715256634505,-3328.33,0.00019915,2]
[326693672,1715256634515,-834.24,0.00019943,2]
[326693673,1715256634525,-317.71,0.00019977,2]
[326693674,1715256634534,-1100.0,0.0002,3]
[326693675,1715256634544,-1770.7603545,0.0002,2]
[326693676,1715256634555,-861.32670888,0.0002,2]
[326693677,1715256634565,-1268.65813202,0.00020001,2]
[326693678,1715256634578,-909.30186798,0.00020001,2]
[326693679,1715256634587,-500.0,0.00020137,2]
[326693680,1715256634597,-155.47,0.00020137,2]
[326693681,1715256634607,-2576.83533335,0.00020142,2]
[326693682,1715256634617,-296.44034385,0.00020142,2]
[326693683,1715256634627,-331.86,0.00020145,2]
[326693684,1715256634637,-3830.08990948,0.00020145,2]
[326693685,1715256634649,-377.61009052,0.00020145,2]
[326693686,1715256634658,-127.08412224,0.00020177,2]
[326693687,1715256634671,-63.58587776,0.00020177,2]
[326693688,1715256634680,-201.9,0.00020352,2]
[326693689,1715256634690,-153.9793298,0.00020385,2]
[326693690,1715256634700,-1000.0,0.000207,2]
[326693691,1715256634709,-223.0,0.000207,2]
[326693692,1715256634719,-353.0,0.000207,2]
[326693693,1715256634729,-603.15023389,0.00020723,2]
[326693694,1715256634738,-202.041582,0.00020725,2]
[326693695,1715256634748,-155.55638544,0.00020988,2]
[326693696,1715256634757,-248.14548509,0.00021,2]
[326693697,1715256634767,-864.66911833,0.00021,2]
[326693698,1715256634779,-648.56859254,0.00021,2]